bitfinex/quotes_SOLUSD_20251214
["timestamp","ask_amount","ask_price","bid_price","bid_amount"]
[1765714406023,8.3,131.41,131.37,0.9]
[1765714406250,8.96,131.41,131.38,0.69]
[1765714406634,8.3,131.41,131.38,0.69]
[1765714407330,8.3,131.41,131.39,7.61074352]
[1765714407529,8.3,131.41,131.38,8.30131125]
[1765714408334,8.3,131.41,131.39,0.69]
[1765714408551,8.3,131.41,131.38,8.30131125]
[1765714409851,8.3,131.41,131.39,0.72]
[1765714410058,9.0,131.41,131.38,8.33131125]
[1765714411547,8.3,131.41,131.38,8.33131125]
[1765714411857,8.3,131.41,131.39,0.72]
[1765714413731,8.3,131.41,131.39,8.33076177]
[1765714416577,7.60863759,131.43,131.4,0.72]
[1765714416578,8.32,131.43,131.4,0.72]
[1765714418467,8.32,131.43,131.41,7.60977094]
[1765714418972,8.32,131.43,131.41,8.32977094]
[1765714420647,8.32,131.44,131.41,8.32977094]
[1765714420848,8.32,131.44,131.41,7.60977094]
[1765714421045,8.32,131.44,131.42,0.72]
[1765714421249,9.02,131.44,131.41,8.32977094]
[1765714423566,104.6,131.45,131.42,0.72]
[1765714424795,104.6,131.45,131.43,7.60861294]
[1765714425183,104.6,131.45,131.44,0.72]
[1765714425385,105.3,131.45,131.43,7.60861294]
[1765714426002,104.6,131.45,131.43,8.32861294]
[1765714427815,104.6,131.45,131.44,0.72]
[1765714428683,113.62,131.45,131.4,19.74543075]
[1765714428917,105.3,131.44,131.41,7.60956259]
[1765714429076,105.3,131.44,131.41,8.32956259]
[1765714431201,104.6,131.44,131.42,0.72]
[1765714432014,105.3,131.44,131.41,7.60956259]
[1765714432182,105.3,131.44,131.41,8.32956259]
[1765714432826,104.6,131.44,131.41,8.32956259]
[1765714433126,0.7,131.43,131.41,7.60956259]
[1765714433498,104.6,131.44,131.41,7.60956259]
[1765714433698,105.3,131.44,131.41,8.32956259]
[1765714434113,104.6,131.44,131.4,7.60994997]
[1765714434432,0.7,131.43,131.41,7.60969539]
[1765714435811,104.6,131.44,131.42,0.69]
[1765714436518,104.6,131.44,131.41,7.60969539]
[1765714436724,0.66,131.43,131.41,7.60969539]
[1765714437106,104.6,131.44,131.42,0.69]
[1765714437730,104.6,131.44,131.42,8.29888563]
[1765714438029,105.26,131.44,131.41,7.60938133]
[1765714438214,105.26,131.44,131.42,7.60911795]
[1765714438412,104.6,131.44,131.42,8.29911795]
[1765714438607,104.6,131.44,131.43,0.69]
[1765714438934,8.32,131.45,131.43,0.69]
[1765714439118,5.11415952,131.46,131.43,0.69]
[1765714439725,5.11415952,131.46,131.44,7.60803408]
[1765714439926,113.58,131.47,131.44,7.60803408]
[1765714439927,104.6,131.47,131.44,7.60803408]
[1765714440101,104.6,131.47,131.45,0.69]
[1765714440738,0.66,131.46,131.43,8.29845917]
[1765714440948,5.77431363,131.46,131.43,8.29845917]
[1765714441106,109.71431363,131.45,131.41,8.29956616]
[1765714441309,5.11494286,131.44,131.41,7.60956616]
[1765714441537,5.11555314,131.43,131.41,8.29956616]
[1765714442340,5.11555314,131.43,131.38,27.32819376]
[1765714442341,5.11555314,131.43,131.4,7.61034913]
[1765714442546,0.66,131.43,131.4,7.61034913]
[1765714442836,0.66,131.43,131.4,0.69]
[1765714443047,5.11592383,131.42,131.39,7.61050085]
[1765714443221,13.43592383,131.42,131.38,8.3013396]
[1765714443422,0.66,131.41,131.38,0.69]
[1765714443742,5.11560073,131.41,131.39,0.69]
[1765714443942,113.58,131.42,131.39,8.30051956]
[1765714444242,5.11596476,131.41,131.38,7.61129726]
[1765714444410,5.77596476,131.41,131.38,8.30129726]
[1765714445214,120.52927644,131.42,131.38,7.61129726]
[1765714445415,5.776305,131.41,131.38,8.30129726]
[1765714445618,0.66,131.41,131.38,8.30129726]
[1765714446215,113.58,131.42,131.38,8.30129726]
[1765714446535,5.77579119,131.41,131.38,8.30129726]
[1765714446836,0.66,131.41,131.38,8.30129726]
[1765714447239,120.5292311,131.42,131.38,7.61129726]
[1765714447240,5.77562082,131.4,131.38,7.61129726]
[1765714447442,5.11562082,131.41,131.39,0.69]
[1765714448420,5.11562082,131.41,131.39,8.30063446]
[1765714452543,113.58,131.42,131.39,8.30063446]
[1765714452953,112.92,131.42,131.39,8.30063446]
[1765714453129,112.92,131.42,131.39,0.69]
[1765714453330,113.58,131.42,131.39,0.69]
[1765714453867,104.6,131.41,131.39,0.69]
[1765714455280,104.6,131.41,131.39,8.30060033]
[1765714457156,104.6,131.41,131.4,0.69]
[1765714457353,104.6,131.41,131.38,27.3302801]
[1765714457541,104.6,131.41,131.39,0.69]
[1765714458650,104.6,131.41,131.38,7.6115086]
[1765714458851,0.66,131.4,131.38,7.6115086]
[1765714459182,105.26,131.41,131.38,8.3015086]
[1765714459549,0.66,131.4,131.38,8.3015086]
[1765714459881,105.26,131.41,131.38,8.3015086]
[1765714460569,104.6,131.41,131.39,0.69]
[1765714462175,105.26,131.41,131.38,8.3015086]
[1765714465979,104.6,131.41,131.38,7.6115086]
[1765714466190,104.6,131.44,131.39,0.68]
[1765714466349,5.8346429,131.43,131.39,0.68]
[1765714466554,0.72,131.43,131.39,0.68]
[1765714466967,5.11453823,131.43,131.39,0.68]
[1765714467378,5.83453823,131.43,131.39,0.68]
[1765714468086,5.83453823,131.43,131.4,7.61035007]
[1765714468259,0.72,131.43,131.4,7.61035007]
[1765714468558,0.72,131.43,131.4,8.32035007]
[1765714470076,5.83523208,131.43,131.4,8.32035007]
[1765714471308,0.72,131.43,131.4,8.32035007]
[1765714474412,5.11838225,131.42,131.4,8.32035007]
[1765714474592,0.72,131.43,131.4,8.32035007]
[1765714474798,5.11809545,131.42,131.4,8.32035007]
[1765714474993,0.72,131.43,131.4,8.32035007]
[1765714475196,5.1180957,131.42,131.38,8.3215086]
[1765714475392,9.09426806,131.42,131.38,7.6115086]
[1765714475600,110.40812914,131.41,131.38,7.6115086]
[1765714475798,5.11812914,131.4,131.38,7.6115086]
[1765714475990,5.80812914,131.4,131.38,7.6115086]
[1765714476308,0.69,131.39,131.38,7.6115086]
[1765714476508,5.80777296,131.4,131.38,7.6115086]
[1765714477121,0.69,131.4,131.38,7.6115086]
[1765714477615,0.69,131.4,131.37,7.81201062]
[1765714478118,0.69,131.4,131.37,8.52201062]
[1765714478318,0.69,131.4,131.37,7.81201062]
[1765714478319,5.11810821,131.39,131.37,7.81201062]
[1765714478498,0.69,131.4,131.37,7.81201062]
[1765714478693,5.80735877,131.39,131.37,7.81201062]
[1765714479014,0.69,131.39,131.37,7.81201062]
[1765714479536,0.69,131.39,131.37,8.52201062]
[1765714479900,0.69,131.39,131.37,7.81201062]
[1765714480110,0.69,131.39,131.37,8.52201062]
[1765714480618,0.69,131.39,131.37,7.81201062]
[1765714480924,0.69,131.39,131.37,8.52201062]
[1765714481106,0.69,131.39,131.37,0.2]
[1765714481291,5.11536997,131.38,131.37,0.2]
[1765714481491,13.43536997,131.38,131.37,0.2]
[1765714481698,14.12536997,131.38,131.37,0.2]
[1765714482100,13.43536997,131.38,131.37,7.81208799]
[1765714482306,9.01,131.4,131.37,8.52208799]
[1765714482506,5.11501316,131.39,131.37,7.81208799]
[1765714482792,0.69,131.39,131.37,7.81208799]
[1765714483718,5.11476325,131.38,131.37,7.81208799]
[1765714484031,113.61,131.41,131.38,0.71]
[1765714484220,5.11524795,131.4,131.38,0.71]
[1765714484412,113.61,131.41,131.38,0.71]
[1765714484612,5.80744101,131.4,131.37,27.55230797]
[1765714484829,0.69,131.4,131.37,27.55230797]
[1765714485742,0.69,131.4,131.38,0.71]
[1765714485743,5.11710637,131.4,131.38,0.71]
[1765714486036,8.32,131.41,131.38,0.71]
[1765714486411,0.69,131.42,131.38,0.71]
[1765714486614,0.69,131.43,131.38,0.71]
[1765714486819,5.11803386,131.42,131.38,9.01]
[1765714487025,0.69,131.43,131.38,9.01]
[1765714487220,9.01,131.44,131.39,0.71]
[1765714487421,5.11838324,131.43,131.39,0.71]
[1765714487722,9.01,131.44,131.4,7.61035007]
[1765714487947,5.11597382,131.43,131.4,7.61035007]
[1765714488117,9.01,131.44,131.41,0.71]
[1765714488321,5.11622633,131.43,131.41,0.71]
[1765714488521,9.01,131.44,131.41,0.71]
[1765714488735,5.1158183,131.43,131.41,0.71]
[1765714488918,9.01,131.44,131.41,0.71]
[1765714489244,5.1158183,131.43,131.41,0.71]
[1765714489459,8.32,131.44,131.41,0.71]
[1765714489757,5.80539345,131.43,131.41,0.71]
[1765714489913,9.01,131.44,131.42,7.6091919]
[1765714490117,5.80539611,131.43,131.42,7.6091919]
[1765714491035,5.80539611,131.43,131.41,7.60977094]
[1765714491232,0.69,131.42,131.4,7.61019296]
[1765714491615,0.69,131.42,131.4,7.61009899]
[1765714491820,5.11533246,131.42,131.4,7.61009899]
[1765714492047,5.11533246,131.43,131.4,8.32009899]
[1765714492350,0.69,131.43,131.4,8.32009899]
[1765714492553,0.69,131.43,131.4,27.34597418]
[1765714493051,5.11616237,131.42,131.4,27.34597418]
[1765714493241,0.69,131.43,131.4,27.34597418]
[1765714493545,9.01,131.44,131.41,0.71]
[1765714493743,5.11634818,131.43,131.41,0.71]
[1765714493953,5.11634818,131.44,131.41,0.71]
[1765714494161,5.11634818,131.43,131.41,0.71]
[1765714494464,104.6,131.45,131.41,0.71]
[1765714495434,104.6,131.45,131.42,7.6091919]
[1765714495647,105.29,131.45,131.42,26.63217165]
[1765714495945,104.6,131.45,131.42,27.35217165]
[1765714496151,0.67,131.44,131.42,26.63217165]
[1765714496322,0.67,131.44,131.42,27.35217165]
[1765714496532,104.6,131.45,131.43,0.72]
[1765714497540,105.27,131.45,131.44,7.60803408]
[1765714498449,104.6,131.45,131.43,7.60861294]
[1765714498632,104.6,131.45,131.43,8.32861294]
[1765714501629,105.27,131.45,131.43,8.32861294]
[1765714502954,105.27,131.45,131.43,7.60861294]
[1765714503832,104.6,131.45,131.43,7.60861294]
[1765714504033,104.6,131.48,131.44,0.72]
[1765714504240,104.6,131.47,131.44,0.72]
[1765714504435,104.6,131.47,131.45,7.6074553]
[1765714504634,29.74554351,131.51,131.46,0.72]
[1765714504635,104.6,131.5,131.46,0.72]
[1765714504835,7.06405994,131.54,131.5,13.0470912]
[1765714505159,8.48373679,131.56,131.5,13.0470912]
[1765714505160,5.10030264,131.55,131.5,13.0470912]
[1765714505461,0.67,131.53,131.5,13.0470912]
[1765714506240,0.67,131.53,131.5,20.65156616]
[1765714506866,0.67,131.53,131.5,21.37156616]
[1765714507244,0.67,131.54,131.51,0.72]
[1765714507650,5.09338545,131.55,131.51,0.72]
[1765714507847,5.76338545,131.56,131.51,0.72]
[1765714508169,5.09338545,131.56,131.52,7.60340632]
[1765714508354,0.67,131.55,131.52,7.60340632]
[1765714508545,0.67,131.55,131.52,8.32340632]
[1765714509159,0.67,131.55,131.51,7.60379813]
[1765714509333,9.76426806,131.55,131.51,7.60379813]
[1765714509742,0.67,131.54,131.51,7.60379813]
[1765714510247,104.6,131.53,131.51,7.60379813]
[1765714510763,105.27,131.53,131.5,20.6515097]
[1765714510951,105.27,131.53,131.5,21.3715097]
[1765714512069,105.27,131.53,131.52,7.60340632]
[1765714512070,104.6,131.53,131.52,7.60340632]
[1765714512574,105.27,131.53,131.51,7.603907]
[1765714512876,0.67,131.52,131.51,7.603907]
[1765714513669,0.67,131.52,131.5,7.60447902]
[1765714513871,0.67,131.52,131.49,7.60497508]
[1765714514674,113.57,131.53,131.49,27.33782776]
[1765714514973,0.67,131.52,131.49,27.33782776]
[1765714515266,113.57,131.53,131.49,26.61782776]
[1765714515464,113.57,131.53,131.49,27.33782776]
[1765714515976,0.67,131.52,131.49,27.33782776]
[1765714516844,0.67,131.52,131.49,26.61782776]
[1765714517045,0.67,131.52,131.49,27.33782776]
[1765714517367,112.9,131.53,131.49,27.33782776]
[1765714517544,0.67,131.52,131.49,27.33782776]
[1765714518471,0.67,131.52,131.49,7.60497508]
[1765714518975,0.67,131.52,131.49,8.32497508]
[1765714520473,0.67,131.52,131.49,7.60497508]
[1765714521660,0.67,131.52,131.49,8.32497508]
[1765714523077,0.67,131.52,131.49,27.33782776]
[1765714525052,0.67,131.52,131.49,7.60497508]
[1765714525252,104.6,131.51,131.49,7.60497508]
[1765714525653,105.27,131.51,131.49,7.60497508]
[1765714526751,104.6,131.51,131.49,7.60497508]
[1765714526962,104.6,131.51,131.49,8.26497508]
[1765714527475,105.26,131.51,131.49,8.26497508]
[1765714527684,104.6,131.51,131.49,8.26497508]
[1765714533796,104.6,131.51,131.49,7.60497508]
[1765714533967,104.6,131.51,131.5,0.66]
[1765714534679,104.6,131.51,131.5,8.26456273]
[1765714535148,0.72,131.54,131.5,27.27596957]
[1765714535354,0.72,131.54,131.51,0.66]
[1765714535764,13.39178496,131.55,131.51,0.66]
[1765714535984,14.11178496,131.55,131.51,0.66]
[1765714536682,14.11178496,131.55,131.52,26.61192213]
[1765714536884,14.11178496,131.55,131.52,27.27192213]
[1765714537284,105.32,131.56,131.53,0.66]
[1765714537457,104.6,131.55,131.53,0.66]
[1765714537774,105.32,131.55,131.52,27.27192213]
[1765714538162,104.6,131.55,131.53,0.66]
[1765714538704,104.6,131.55,131.54,7.60225026]
[1765714538865,104.6,131.55,131.54,8.26225026]
[1765714539181,104.6,131.55,131.54,7.60225026]
[1765714539375,105.32,131.55,131.54,7.60225026]
[1765714539571,104.6,131.55,131.54,7.60225026]
[1765714539763,104.6,131.55,131.54,8.26225026]
[1765714541759,105.32,131.55,131.54,7.60225026]
[1765714543181,105.32,131.55,131.53,7.60282825]
[1765714543585,105.32,131.55,131.53,8.26282825]
[1765714543759,105.32,131.55,131.53,7.60282825]
[1765714544701,104.6,131.55,131.53,7.60282825]
[1765714544902,104.6,131.55,131.54,0.66]
[1765714545904,104.6,131.55,131.54,8.26225026]
[1765714546287,0.72,131.58,131.54,27.26787592]
[1765714546486,0.72,131.58,131.55,0.66]
[1765714547406,0.72,131.58,131.56,7.60109455]
[1765714550610,113.62,131.59,131.56,8.26109455]
[1765714550921,8.3,131.59,131.57,0.66]
[1765714551212,5.1060439,131.6,131.57,0.66]
[1765714551710,0.1,131.61,131.57,0.66]
[1765714551911,0.72,131.6,131.57,0.66]
[1765714553019,0.72,131.6,131.58,7.5999392]
[1765714554792,105.32,131.6,131.58,7.5999392]
[1765714555018,105.32,131.6,131.57,7.60051683]
[1765714555317,0.72,131.59,131.57,7.60051683]
[1765714557509,104.6,131.6,131.58,0.7]
[1765714558316,104.6,131.6,131.59,7.59936165]
[1765714561000,105.3,131.6,131.59,7.59936165]
[1765714561200,105.3,131.6,131.55,19.00375229]
[1765714561423,0.7,131.59,131.57,7.60028399]
[1765714563029,0.7,131.59,131.56,7.60109455]
[1765714563334,8.3,131.58,131.55,7.601525]
[1765714563837,0.7,131.57,131.55,7.601525]
[1765714565217,0.7,131.57,131.54,7.60225026]
[1765714565995,0.7,131.57,131.53,7.60262262]
[1765714565996,0.98432314,131.57,131.53,7.60262262]
[1765714566388,0.7,131.56,131.53,7.60262262]
[1765714567021,0.7,131.57,131.54,0.7]
[1765714567192,0.7,131.57,131.55,7.60167236]
[1765714567395,8.3,131.58,131.55,7.60167236]
[1765714567594,105.3,131.6,131.56,0.7]
[1765714568403,104.6,131.6,131.56,0.7]
[1765714568607,0.7,131.59,131.55,27.30585327]
[1765714569015,104.6,131.6,131.56,0.7]
[1765714569212,105.3,131.6,131.57,7.60051683]
[1765714569428,0.7,131.59,131.57,7.60051683]
[1765714569795,8.4,131.61,131.58,0.7]
[1765714570208,9.1,131.61,131.58,0.7]
[1765714571235,9.1,131.61,131.58,8.29936722]
[1765714571528,0.7,131.6,131.58,7.59936722]
[1765714572740,0.7,131.6,131.57,26.60180891]
[1765714573241,0.7,131.6,131.57,27.30180891]
[1765714573716,0.7,131.6,131.57,7.60051683]
[1765714574324,5.80043978,131.6,131.57,7.60051683]
[1765714574731,0.7,131.59,131.56,7.60109455]
[1765714575339,5.80043978,131.59,131.56,7.60109455]
[1765714575641,105.3,131.59,131.56,7.60109455]
[1765714575833,0.7,131.58,131.56,7.60109455]
[1765714576711,0.7,131.58,131.55,26.60545861]
[1765714576912,0.7,131.58,131.55,27.30545861]
[1765714577133,5.80670362,131.58,131.55,27.30545861]
[1765714577717,0.7,131.57,131.55,7.60167236]
[1765714577917,5.80670362,131.57,131.51,19.70980664]
[1765714578115,5.80670362,131.56,131.53,7.60281664]
[1765714578332,0.7,131.55,131.52,7.60326946]
[1765714579325,14.1094418,131.55,131.52,7.60326946]
[1765714579523,14.1094418,131.55,131.53,0.7]
[1765714579524,8.3,131.55,131.53,0.7]
[1765714579729,13.41077048,131.55,131.53,0.7]
[1765714580140,8.3,131.55,131.53,0.7]
[1765714580625,8.3,131.55,131.54,7.60225026]
[1765714580826,13.41191154,131.55,131.54,7.60225026]
[1765714581143,14.11191154,131.55,131.54,7.60225026]
[1765714581345,14.11191154,131.55,131.53,7.60260781]
[1765714581520,9.0,131.55,131.53,7.60260781]
[1765714581919,5.1124244,131.56,131.53,8.30260781]
[1765714582116,5.11247879,131.55,131.53,7.60260781]
[1765714582312,0.7,131.55,131.52,8.3032046]
[1765714582517,15.90083497,131.57,131.5,27.29067364]
[1765714582725,5.81342457,131.56,131.51,0.7]
[1765714582924,5.11342457,131.55,131.51,0.7]
[1765714583133,0.7,131.55,131.51,0.7]
[1765714583347,8.3,131.57,131.52,7.60340632]
[1765714583538,5.11333297,131.56,131.52,26.61192213]
[1765714583746,5.11333297,131.55,131.53,0.7]
[1765714583922,109.71333297,131.56,131.53,0.7]
[1765714584123,5.11333297,131.55,131.52,7.60340632]
[1765714584325,104.6,131.56,131.52,8.30340632]
[1765714584523,5.11137817,131.55,131.52,7.60340632]
[1765714584823,112.20118442,131.56,131.52,7.60340632]
[1765714585024,109.71134461,131.55,131.52,7.60340632]
[1765714585247,5.11134461,131.54,131.52,7.60340632]
[1765714585449,104.6,131.55,131.52,7.60340632]
[1765714585753,14.09052672,131.54,131.52,7.60340632]
[1765714586157,14.09052672,131.54,131.51,7.60398448]
[1765714586323,8.98,131.54,131.51,8.30398448]
[1765714586727,8.3,131.54,131.51,7.60398448]
[1765714586950,0.67,131.53,131.51,7.60398448]
[1765714587253,8.3,131.54,131.51,7.60398448]
[1765714587254,104.6,131.55,131.51,7.60398448]
[1765714587445,0.67,131.57,131.52,0.7]
[1765714587629,112.9,131.58,131.52,0.7]
[1765714587830,5.10731423,131.57,131.52,0.7]
[1765714588151,113.57,131.58,131.52,0.7]
[1765714588354,5.10747113,131.57,131.53,26.60989888]
[1765714588527,112.9,131.58,131.53,26.60989888]
[1765714588727,5.10737288,131.57,131.54,0.7]
[1765714589055,112.9,131.58,131.54,0.7]
[1765714589424,104.6,131.58,131.54,0.7]
[1765714590146,104.6,131.58,131.54,8.98]
[1765714590351,104.6,131.58,131.55,27.30585327]
[1765714590748,104.6,131.58,131.56,0.7]
[1765714590948,0.1,131.61,131.56,0.7]
[1765714591259,5.20761382,131.61,131.56,0.7]
[1765714591775,0.1,131.61,131.56,0.7]
[1765714592087,0.1,131.61,131.57,39.64890011]
[1765714592370,5.20680347,131.61,131.57,39.64890011]
[1765714592529,5.20680347,131.61,131.58,0.7]
[1765714592939,0.1,131.61,131.59,7.59936165]
[1765714593731,0.1,131.61,131.59,8.29936165]
[1765714594683,0.1,131.61,131.6,0.7]
[1765714594975,0.1,131.61,131.6,8.29878419]
[1765714595180,0.1,131.61,131.6,29.62587539]
[1765714595181,1e-08,131.61,131.6,29.62587539]
[1765714595375,1e-08,131.61,131.6,16.57878419]
[1765714595732,1e-08,131.61,131.6,29.62587539]
[1765714597150,1e-08,131.61,131.6,28.92587539]
[1765714597347,1e-08,131.61,131.6,20.64587539]
[1765714597665,1e-08,131.61,131.6,21.34587539]
[1765714599046,1e-08,131.62,131.61,13.7470912]
[1765714599362,1e-08,131.62,131.61,22.0270912]
[1765714600365,1e-08,131.62,131.61,29.62529802]
[1765714600933,1e-08,131.62,131.61,20.64529802]
[1765714601136,1e-08,131.62,131.61,21.34529802]
[1765714603238,1e-08,131.62,131.61,20.64529802]
[1765714603444,1e-08,131.62,131.61,7.59820682]
[1765714603660,0.67000001,131.62,131.61,7.59820682]
[1765714603843,1e-08,131.62,131.61,20.64529802]
[1765714605349,0.67000001,131.62,131.6,7.59878419]
[1765714605956,1e-08,131.62,131.6,8.29878419]
[1765714607177,1e-08,131.62,131.6,7.59878419]
[1765714607178,0.67000001,131.62,131.6,7.59878419]
[1765714607355,0.67000001,131.62,131.59,18.99718036]
[1765714607747,0.67000001,131.62,131.59,19.69718036]
[1765714607983,1e-08,131.62,131.59,18.99718036]
[1765714608278,1e-08,131.62,131.6,0.7]
[1765714608980,1e-08,131.62,131.61,7.59820682]
[1765714611261,1e-08,131.62,131.61,8.29820682]
[1765714611462,1e-08,131.62,131.61,21.34529802]
[1765714616705,1e-08,131.62,131.61,29.62529802]
[1765714617193,1e-08,131.62,131.61,16.57820682]
[1765714617359,1e-08,131.62,131.61,29.62529802]
[1765714617697,1e-08,131.62,131.61,71.63674258]
[1765714621114,1e-08,131.62,131.61,29.62529802]
[1765714621316,1e-08,131.62,131.61,16.57820682]
[1765714621527,1e-08,131.62,131.61,39.389293]
[1765714622001,1e-08,131.62,131.61,16.57820682]
[1765714623210,1e-08,131.62,131.61,28.92529802]
[1765714623211,0.66000001,131.62,131.61,28.92529802]
[1765714623393,0.66000001,131.62,131.61,7.59820682]
[1765714623799,0.66000001,131.62,131.61,20.64529802]
[1765714624006,0.66000001,131.62,131.61,7.59820682]
[1765714625140,0.66000001,131.62,131.6,7.59878419]
[1765714626845,0.66000001,131.62,131.59,18.99718036]
[1765714627025,0.66000001,131.62,131.59,27.96718036]
[1765714627354,0.66000001,131.62,131.59,27.27718036]
[1765714628338,0.66000001,131.62,131.59,34.87654201]
[1765714630736,0.66000001,131.62,131.59,15.87936165]
[1765714630931,0.66000001,131.62,131.59,7.59936165]
[1765714631842,1e-08,131.62,131.59,7.59936165]
[1765714632026,0.66000001,131.62,131.59,8.28936165]
[1765714632222,0.66000001,131.62,131.59,35.56776578]
[1765714634526,0.66000001,131.62,131.59,15.87936165]
[1765714634870,5.7639656,131.62,131.59,7.59936165]
[1765714635031,0.66000001,131.62,131.59,7.59936165]
[1765714635227,0.66,131.61,131.59,7.59936165]
[1765714636529,0.66,131.61,131.58,7.5999392]
[1765714637959,104.6,131.6,131.58,7.5999392]
[1765714638558,0.66,131.59,131.58,7.5999392]
[1765714638851,5.76357966,131.59,131.55,27.28347577]
[1765714639270,0.66,131.58,131.55,27.28347577]
[1765714639973,0.66,131.58,131.55,7.60130362]
[1765714640691,0.66,131.58,131.54,7.60225026]
[1765714640867,0.66,131.58,131.54,8.29225026]
[1765714641064,0.66,131.58,131.54,7.60225026]
[1765714641264,0.66,131.58,131.54,8.29225026]
[1765714641762,0.66,131.58,131.54,27.29787592]
[1765714642274,0.66,131.58,131.54,26.60787592]
[1765714643082,0.66,131.58,131.54,27.29787592]
[1765714643650,0.66,131.58,131.54,26.60787592]
[1765714644063,0.66,131.58,131.54,27.29787592]
[1765714644463,0.66,131.58,131.55,0.69]
[1765714645049,0.66,131.59,131.55,0.69]
[1765714645374,8.3,131.58,131.54,7.60225026]
[1765714645549,13.39036254,131.58,131.53,20.64984342]
[1765714645871,0.94432314,131.57,131.53,7.60275222]
[1765714646270,0.7,131.56,131.53,7.60275222]
[1765714648678,0.7,131.56,131.53,26.60982285]
[1765714648879,0.7,131.56,131.55,13.0470912]
[1765714649053,0.7,131.57,131.55,13.0470912]
[1765714649680,0.7,131.57,131.55,20.64867813]
[1765714649862,0.7,131.57,131.54,7.60205966]
[1765714650058,8.30054134,131.57,131.53,7.6026654]
[1765714650582,0.7,131.56,131.53,7.6026654]
[1765714651382,0.7,131.56,131.52,0.7]
[1765714651564,0.7,131.56,131.53,7.60282825]
[1765714651958,8.3,131.58,131.53,26.60989888]
[1765714652166,105.3,131.57,131.54,0.7]
[1765714652480,104.6,131.57,131.54,0.7]
[1765714653259,104.6,131.57,131.55,7.60167236]
[1765714653662,104.6,131.57,131.56,0.7]
[1765714654691,104.6,131.57,131.56,8.30109455]
[1765714654868,104.6,131.57,131.56,7.60109455]
[1765714656569,104.6,131.57,131.55,0.7]
[1765714657494,104.6,131.57,131.56,7.60109455]
[1765714657863,105.3,131.57,131.56,7.60109455]
[1765714659066,105.3,131.57,131.55,7.60167236]
[1765714659674,9.0,131.61,131.56,0.7]
[1765714659974,104.60000001,131.62,131.6,13.0470912]
[1765714660187,1e-08,131.62,131.6,13.0470912]
[1765714660508,1e-08,131.62,131.6,13.7470912]
[1765714660668,1e-08,131.62,131.6,13.0470912]
[1765714660875,1e-08,131.62,131.6,13.7470912]
[1765714661085,1e-08,131.62,131.61,7.59820682]
[1765714663972,0.70000001,131.62,131.61,7.59820682]
[1765714664777,0.70000001,131.62,131.59,19.69711191]
[1765714664778,0.70000001,131.62,131.59,15.87916878]
[1765714665000,0.70000001,131.62,131.6,8.29859795]
[1765714665001,1e-08,131.62,131.6,8.29859795]
[1765714665483,1e-08,131.62,131.61,13.7470912]
[1765714667170,1e-08,131.62,131.61,21.34529802]
[1765714669175,1e-08,131.62,131.61,20.64529802]
[1765714669176,0.70000001,131.62,131.61,20.64529802]
[1765714669604,1e-08,131.62,131.61,20.64529802]
[1765714669904,0.70000001,131.62,131.61,7.59820682]
[1765714670103,1e-08,131.62,131.61,7.59820682]
[1765714670477,1e-08,131.62,131.6,7.59878419]
[1765714670676,1e-08,131.62,131.6,8.29878419]
[1765714670888,1e-08,131.62,131.61,0.7]
[1765714672605,1e-08,131.62,131.61,8.29820682]
[1765714680117,1e-08,131.62,131.61,7.59820682]
[1765714680419,1e-08,131.62,131.61,8.27820682]
[1765714681922,1e-08,131.62,131.61,17.37247488]
[1765714682426,1e-08,131.62,131.61,7.59820682]
[1765714682918,1e-08,131.62,131.61,8.27820682]
[1765714685109,1e-08,131.62,131.61,21.32529802]